[Event "4NCL Spring GM Round Robin 2024"]
[Site "Peterborough"]
[Date "2024.03.26"]
[Round "7.4"]
[White "Agdelen, Huseyin Can"]
[Black "Makkar, Rajat"]
[Result "1/2-1/2"]
[ECO "C68"]
[WhiteElo "2408"]
[BlackElo "2434"]
[Annotator "TA"]
[PlyCount "112"]
[EventDate "2024.03.22"]
[EventType "tourn"]
[EventCountry "ENG"]
[SourceTitle "playchess.com"]
[Source "ChessBase"]
[SourceQuality "1"]
[TimeControl "5400+30"]

{[%evp 35,111,50,96,69,70,0,13,0,-25,-47,0,0,0,0,8,0,39,38,31,33,35,31,17,17,36,25,31,40,21,13,47,32,26,8,8,7,8,0,0,0,0,0,0,0,0,0,0,0,0,0,0,0,0,-8,-8,-8,-8,-8,-8,-8,0,-8,-8,-8,-8,-8,-8,-8,-8,-8,-8,-8,-8,-8,-8,-8,-8,-8]} 1. e4 {[%emt 0:04:44]} e5 {[%emt 0:00:10]} 2. Nf3 {[%emt 0:00:21]} Nc6 {[%emt 0:01:14]} 3. Bb5 {[%emt 0:01:28]} a6 {[%emt 0:00:16]} 4. Bxc6 {[%emt 0:01:10]} dxc6 {[%emt 0:00:08]} 5. O-O {[%emt 0:00:19]} Bg4 {[%emt 0:00:18]} 6. h3 {[%emt 0:02:22]} Bh5 {[%emt 0:00:16]} 7. g4 {[%emt 0:07:35]} Bg6 {[%emt 0:00:26] C68: Ruy Lopez: Exchange Variation, sidelines.} 8. Nxe5 {[%emt 0:11:47]} Ne7 {[%emt 0:00:19] 8...Bd6 is becoming the main line.} 9. d3 {[%emt 0:03:27]} h5 {[%emt 0:00:29]} 10. Bf4 {[%emt 0:05:24]} hxg4 {[%emt 0:31:02]} 11. hxg4 {[%emt 0:08:44]} f6 {[%emt 0:10:14]} 12. Nc4 {[%emt 0:03:15]} Qd7 {[%emt 0:04:49]} 13. Nc3 $146 {[%emt 0:02:49]} ({Predecessor:} 13. Nbd2 Bf7 14. Bg3 Be6 15. Ne3 O-O-O 16. Kg2 g6 17. Rh1 Bg7 18. Qe2 Qd4 19. b3 {½-½ Rosner,J (2412)-Buecker,S (2280) Baden-ch Sasbach 2018 (6)}) 13... Bf7 {[%emt 0:02:38]} 14. Kg2 {[%emt 0:06:16]} O-O-O {[%emt 0:05:24]} 15. Ne3 {[%emt 0:07:12]} Be6 {[%emt 0:09:14]} 16. Bg3 {[%emt 0:01:32]} g6 {[%emt 0:01:34]} 17. Qf3 {[%emt 0:01:43]} f5 {[%emt 0:03:44]} 18. Rh1 {[%emt 0:04:22]} fxg4 {[%emt 0:03:53]} (18... Bg7 $14) 19. Qf6 {[%emt 0:08:09]} Rh3 $1 {[%emt 0:05:26]} 20. Qe5 {[%emt 0:02:50]} (20. Rxh3 $14 gxh3+ 21. Kg1) 20... Ng8 {[%emt 0:05:05]} 21. Na4 {[%emt 0:02:41]} Qf7 {[%emt 0:03:30]} 22. Qf4 {[%emt 0:00:13]} Qxf4 {[%emt 0:02:18]} (22... Bxa2 $2 {too greedy.} 23. b3 (23. Qxg4+ Be6 $16) (23. Nxg4 Rxh1 24. Rxh1 Bd6 $16) 23... Qxf4 24. Bxf4 Rxh1 25. Rxh1 $18) (22... Nf6 $15 {is superior.} 23. e5 Rxh1 24. Rxh1 Nh5 25. Qxf7 Bxf7) 23. Bxf4 $11 {[%emt 0:00:02]} Be7 {[%emt 0:01:28]} 24. Nc3 {[%emt 0:03:27]} Rf8 {[%emt 0:01:45]} 25. Ne2 {[%emt 0:00:58]} Nf6 {[%emt 0:00:17]} 26. Bh6 $1 {[%emt 0:02:53]} Rh8 {[%emt 0:02:54]} 27. Bg7 {[%emt 0:01:47]} Rxh1 {[%emt 0:00:31]} 28. Rxh1 {[%emt 0:00:05]} Rxh1 {[%emt 0:00:07]} 29. Kxh1 {[%emt 0:00:03]} Nh5 {[%emt 0:00:21]} 30. Be5 {[%emt 0:01:49]} Bd6 {[%emt 0:00:53]} 31. Bxd6 {[%emt 0:00:30]} cxd6 {[%emt 0:00:01]} 32. a3 {[%emt 0:00:45]} b5 {[%emt 0:00:46]} 33. Kg2 {[%emt 0:00:25]} Kd8 {[%emt 0:00:47]} 34. f3 {[%emt 0:05:43]} gxf3+ {[%emt 0:00:34]} 35. Kxf3 {[%emt 0:00:02]} Ke7 {[%emt 0:00:10]} 36. Nf4 {[%emt 0:00:41]} Nxf4 {[%emt 0:00:43]} 37. Kxf4 {[%emt 0:00:02]} Kf6 {[%emt 0:00:20]} 38. Nf1 {[%emt 0:01:23]} g5+ {[%emt 0:01:01]} 39. Ke3 {[%emt 0:00:01]} d5 {[%emt 0:00:41]} 40. Ng3 {[%emt 0:00:36]} a5 {[%emt 0:00:13]} 41. b4 {[%emt 0:00:30]} a4 {[%emt 0:01:35]} 42. Kd4 {[%emt 0:00:46]} dxe4 {[%emt 0:00:04]} 43. Nxe4+ {[%emt 0:00:36]} Kf5 {[%emt 0:00:10]} 44. c4 {[%emt 0:00:12]} Kf4 {[%emt 0:00:32]} 45. Nxg5 {[%emt 0:00:46]} Kxg5 {[%emt 0:00:13]} 46. Kc5 {[%emt 0:00:02]} Bd7 {[%emt 0:00:24]} 47. d4 {[%emt 0:01:02]} Be8 {[%emt 0:00:26]} 48. d5 {[%emt 0:00:13]} bxc4 {[%emt 0:00:05]} 49. Kxc4 {[%emt 0:00:20]} Bf7 {[%emt 0:00:48]} 50. b5 {[%emt 0:00:51]} Bxd5+ {[%emt 0:00:14]} (50... cxd5+ 51. Kc5 Be6 52. b6 $15) 51. Kc5 {[%emt 0:00:18]} cxb5 {[%emt 0:00:13]} 52. Kxb5 {[%emt 0:00:08]} Bb3 {[%emt 0:00:15]} 53. Kb4 {[%emt 0:00:01]} Kf4 {[%emt 0:00:04]} 54. Kc3 $1 {[%emt 0:00:05]} Ke3 {[%emt 0:00:01]} 55. Kb2 $1 {[%emt 0:00:06]} Kd2 {[%emt 0:00:02]} 56. Ka1 {[%emt 0:00:03]} Kc1 {[%emt 0:00:02]} 1/2-1/2

[Event "4NCL Spring GM Round Robin 2024"]
[Site "Peterborough"]
[Date "2024.03.26"]
[Round "7.5"]
[White "Wadsworth, Matthew J"]
[Black "Royal, Shreyas"]
[Result "1/2-1/2"]
[ECO "A07"]
[WhiteElo "2450"]
[BlackElo "2457"]
[Annotator "ChessBase"]
[PlyCount "227"]
[EventDate "2024.03.22"]
[EventType "tourn"]
[EventCountry "ENG"]
[SourceTitle "playchess.com"]
[Source "ChessBase"]
[SourceQuality "1"]
[TimeControl "5400+30"]

1. Nf3 {[%emt 0:00:03]} d5 {[%emt 0:00:07]} 2. g3 {[%emt 0:00:06]} Bg4 {[%emt 0:01:02]} 3. Bg2 {[%emt 0:00:07]} c6 {[%emt 0:00:06]} 4. h3 {[%emt 0:00:12]} Bh5 {[%emt 0:00:06]} 5. d4 {[%emt 0:00:45]} e6 {[%emt 0:00:57]} 6. O-O {[%emt 0:00:14]} Nf6 {[%emt 0:00:17]} 7. c4 {[%emt 0:00:13]} Nbd7 {[%emt 0:01:06]} 8. cxd5 {[%emt 0:03:03]} exd5 {[%emt 0:00:07]} 9. Ne5 {[%emt 0:00:56]} Ne4 {[%emt 0:04:18]} 10. Nc3 {[%emt 0:04:54]} Nxc3 {[%emt 0:04:56]} 11. bxc3 {[%emt 0:00:06]} f6 {[%emt 0:09:42]} 12. g4 {[%emt 0:05:41]} fxe5 {[%emt 0:06:54]} 13. gxh5 {[%emt 0:00:09]} Bd6 {[%emt 0:05:01]} 14. Rb1 {[%emt 0:04:10]} O-O {[%emt 0:12:32]} 15. e4 {[%emt 0:04:10]} Nb6 {[%emt 0:04:34]} 16. a4 {[%emt 0:01:33]} dxe4 {[%emt 0:06:05]} 17. a5 {[%emt 0:09:15]} Nd5 {[%emt 0:00:12]} 18. Rxb7 {[%emt 0:00:07]} Qc8 {[%emt 0:02:50]} 19. a6 {[%emt 0:04:55]} Kh8 {[%emt 0:03:15]} 20. h6 {[%emt 0:02:20]} gxh6 {[%emt 0:02:17]} 21. dxe5 {[%emt 0:04:01]} Bxe5 {[%emt 0:01:29]} 22. Qh5 {[%emt 0:00:38]} Qe6 {[%emt 0:06:46]} 23. Qxh6 {[%emt 0:17:10]} Qxh6 {[%emt 0:01:27]} 24. Bxh6 {[%emt 0:00:02]} Rg8 {[%emt 0:00:41]} 25. Kh1 {[%emt 0:01:14]} Nxc3 {[%emt 0:00:36]} 26. Bd2 {[%emt 0:01:44]} Rad8 {[%emt 0:06:08]} 27. Bxc3 {[%emt 0:03:16]} Bxc3 {[%emt 0:00:05]} 28. Rxa7 {[%emt 0:00:09]} Ra8 {[%emt 0:04:21]} 29. Rxa8 {[%emt 0:00:40]} Rxa8 {[%emt 0:00:01]} 30. Rc1 {[%emt 0:00:25]} Bd4 {[%emt 0:00:04]} 31. Rxc6 {[%emt 0:00:31]} Bxf2 {[%emt 0:00:26]} 32. Bxe4 {[%emt 0:00:16]} Re8 {[%emt 0:00:17]} 33. Kg2 {[%emt 0:04:34]} Bd4 {[%emt 0:00:53]} 34. Kf3 {[%emt 0:00:27]} Re7 {[%emt 0:00:29]} 35. h4 {[%emt 0:01:07]} Kg7 {[%emt 0:07:42]} 36. h5 {[%emt 0:00:31]} Rf7+ {[%emt 0:00:14]} 37. Ke2 {[%emt 0:00:31]} Rf6 {[%emt 0:00:50]} 38. Rc7+ {[%emt 0:00:41]} Rf7 {[%emt 0:02:31]} 39. Rc4 {[%emt 0:03:23]} Bg1 {[%emt 0:00:15]} 40. Rc6 {[%emt 0:01:32]} Rf6 {[%emt 0:00:30]} 41. Rc7+ {[%emt 0:00:38]} Rf7 {[%emt 0:00:06]} 42. Rc1 {[%emt 0:00:29]} Bd4 {[%emt 0:00:19]} 43. Kd3 {[%emt 0:01:06]} Bf2 {[%emt 0:00:04]} 44. Bd5 {[%emt 0:02:39]} Rf5 {[%emt 0:09:52]} 45. Rc7+ {[%emt 0:00:36]} Kh6 {[%emt 0:00:00]} 46. Ke4 {[%emt 0:05:21]} Rxh5 {[%emt 0:00:00]} 47. a7 {[%emt 0:00:08]} Bxa7 {[%emt 0:00:00]} 48. Rxa7 {[%emt 0:00:04]} Rg5 {[%emt 0:00:00]} 49. Be6 {[%emt 0:01:20]} Kg6 {[%emt 0:00:00]} 50. Ra6 {[%emt 0:00:34]} Rg1 {[%emt 0:00:00]} 51. Bd5+ {[%emt 0:00:59]} Kg5 {[%emt 0:00:00]} 52. Ke5 {[%emt 0:00:09]} Rf1 {[%emt 0:00:00]} 53. Be4 {[%emt 0:00:22]} Rf7 {[%emt 0:00:00]} 54. Re6 {[%emt 0:00:23]} Ra7 {[%emt 0:00:00]} 55. Re8 {[%emt 0:00:14]} Kh6 {[%emt 0:00:00]} 56. Bf5 {[%emt 0:02:18]} Kg7 {[%emt 0:00:00]} 57. Be6 {[%emt 0:00:24]} h5 {[%emt 0:00:00]} 58. Rg8+ {[%emt 0:00:52]} Kh7 {[%emt 0:00:00]} 59. Kf6 {[%emt 0:00:35]} Ra6 {[%emt 0:00:34]} 60. Rg5 {[%emt 0:02:54]} Kh6 {[%emt 0:00:12]} 61. Rg6+ {[%emt 0:02:32]} Kh7 {[%emt 0:00:02]} 62. Kg5 {[%emt 0:03:13]} Ra1 {[%emt 0:00:08]} 63. Rf6 {[%emt 0:00:40]} Rg1+ {[%emt 0:00:30]} 64. Kxh5 {[%emt 0:00:08]} Rh1+ {[%emt 0:01:07]} 65. Kg5 {[%emt 0:00:01]} Rg1+ {[%emt 0:00:09]} 66. Bg4 {[%emt 0:00:23]} Kg7 {[%emt 0:00:05]} 67. Ra6 {[%emt 0:00:15]} Rf1 {[%emt 0:00:18]} 68. Rh6 {[%emt 0:03:41]} Ra1 {[%emt 0:00:43]} 69. Rh2 {[%emt 0:00:39]} Rf1 {[%emt 0:00:19]} 70. Rh3 {[%emt 0:00:41]} Rg1 {[%emt 0:00:39]} 71. Rf3 {[%emt 0:00:15]} Ra1 {[%emt 0:00:36]} 72. Rb3 {[%emt 0:00:39]} Rf1 {[%emt 0:00:06]} 73. Rb2 {[%emt 0:00:14]} Rf7 {[%emt 0:00:55]} 74. Bf5 {[%emt 0:00:21]} Ra7 {[%emt 0:00:41]} 75. Rh2 {[%emt 0:00:29]} Ra6 {[%emt 0:00:08]} 76. Rh7+ {[%emt 0:00:46]} Kf8 {[%emt 0:00:07]} 77. Bg6 {[%emt 0:00:53]} Ra5+ {[%emt 0:01:35]} 78. Kh6 {[%emt 0:00:09]} Ra1 {[%emt 0:01:11]} 79. Rf7+ {[%emt 0:01:00]} Kg8 {[%emt 0:00:04]} 80. Re7 {[%emt 0:00:16]} Rf1 {[%emt 0:00:33]} 81. Kg5 {[%emt 0:00:30]} Kf8 {[%emt 0:00:41]} 82. Rc7 {[%emt 0:00:25]} Ra1 {[%emt 0:00:28]} 83. Rf7+ {[%emt 0:02:06]} Kg8 {[%emt 0:00:02]} 84. Rb7 {[%emt 0:00:23]} Kf8 {[%emt 0:00:29]} 85. Bd3 {[%emt 0:00:17]} Rc1 {[%emt 0:00:39]} 86. Kf6 {[%emt 0:00:50]} Rc6+ {[%emt 0:00:08]} 87. Ke5 {[%emt 0:00:11]} Rc5+ {[%emt 0:01:01]} 88. Kd6 {[%emt 0:00:16]} Rc1 {[%emt 0:00:52]} 89. Bf5 {[%emt 0:00:21]} Rf1 {[%emt 0:01:30]} 90. Ke6 {[%emt 0:00:18]} Rd1 {[%emt 0:01:32]} 91. Kf6 {[%emt 0:00:13]} Ke8 {[%emt 0:00:19]} 92. Rc7 {[%emt 0:01:29]} Rd2 {[%emt 0:00:22]} 93. Rc1 {[%emt 0:01:41]} Rd6+ {[%emt 0:00:56]} 94. Be6 {[%emt 0:00:55]} Rd2 {[%emt 0:00:16]} 95. Rc7 {[%emt 0:00:26]} Rf2+ {[%emt 0:00:35]} 96. Ke5 {[%emt 0:00:07]} Kf8 {[%emt 0:00:15]} 97. Bf5 {[%emt 0:01:17]} Ke8 {[%emt 0:00:13]} 98. Kf6 {[%emt 0:00:39]} Rd2 {[%emt 0:00:05]} 99. Rg7 {[%emt 0:00:06]} Kd8 {[%emt 0:00:36]} 100. Be6 {[%emt 0:00:47]} Rd1 {[%emt 0:00:29]} 101. Ke5 {[%emt 0:00:44]} Ke8 {[%emt 0:00:57]} 102. Bd5 {[%emt 0:00:35]} Rf1 {[%emt 0:01:01]} 103. Kd6 {[%emt 0:00:55]} Rf2 {[%emt 0:00:08]} 104. Rg8+ {[%emt 0:00:45]} Rf8 {[%emt 0:00:05]} 105. Rg4 {[%emt 0:00:42]} Rf2 {[%emt 0:00:24]} 106. Rg7 {[%emt 0:00:37]} Rf1 {[%emt 0:00:19]} 107. Bb3 {[%emt 0:00:32]} Rf2 {[%emt 0:00:31]} 108. Bc4 {[%emt 0:00:15]} Rf6+ {[%emt 0:00:33]} 109. Ke5 {[%emt 0:00:12]} Rb6 {[%emt 0:00:20]} 110. Be6 {[%emt 0:00:44]} Kd8 {[%emt 0:01:02]} 111. Rd7+ {[%emt 0:00:38]} Kc8 {[%emt 0:00:12]} 112. Kd5 {[%emt 0:00:16]} Kb8 {[%emt 0:00:16]} 113. Bg4 {[%emt 0:00:16]} Rb2 {[%emt 0:00:08]} 114. Rg7 {[%emt 0:00:28]} 1/2-1/2

[Event "4NCL Spring GM Round Robin 2024"]
[Site "Peterborough"]
[Date "2024.03.27"]
[Round "8.1"]
[White "Gumularz, Szymon"]
[Black "Royal, Shreyas"]
[Result "1-0"]
[ECO "D02"]
[WhiteElo "2590"]
[BlackElo "2457"]
[Annotator "TA"]
[PlyCount "77"]
[EventDate "2024.03.22"]
[EventType "tourn"]
[EventCountry "ENG"]
[SourceTitle "playchess.com"]
[Source "ChessBase"]
[SourceQuality "1"]
[TimeControl "5400+30"]

{[%evp 9,76,25,46,45,40,43,54,55,63,36,54,56,55,40,50,56,52,54,51,47,64,47,63,59,63,36,82,32,37,40,42,43,102,94,149,152,195,191,305,301,291,273,441,441,504,495,574,430,1299,1237,1477,1419,2103,2101,2071,1967,1993,1942,1754,1753,1685,1685,29990,29991,29991,29992,29992,29985,29993]} 1. Nf3 {[%emt 0:02:59][%cal Bg1f3,Bf3h4,Bh4g2,Bg2f4][%mdl 32]} d5 {[%emt 0:00:06]} 2. g3 {[%emt 0:00:04]} Nd7 {[%emt 0:00:48]} 3. d4 {[%emt 0:01:10]} Nb6 {[%emt 0:00:08]} 4. Nbd2 {[%emt 0:01:10]} Bf5 {[%emt 0:03:36]} 5. Nh4 {[%emt 0:00:15]} Bg4 {[%emt 0:00:32]} 6. h3 {[%emt 0:00:08]} Bh5 {[%emt 0:03:13]} 7. Ng2 {[%emt 0:00:13]} e6 {[%emt 0:01:28]} 8. Nf4 {[%emt 0:00:13] White is slightly better.} Bg6 {[%emt 0:00:06]} 9. Bg2 {[%emt 0:00:43]} Nf6 {[%emt 0:00:12]} 10. Nxg6 {[%emt 0:00:38]} hxg6 {[%emt 0:00:09]} 11. e4 {[%emt 0:00:12]} dxe4 {[%emt 0:02:38]} 12. Nxe4 {[%emt 0:00:07]} Nxe4 {[%emt 0:00:07]} 13. Bxe4 {[%emt 0:00:06]} c6 {[%emt 0:00:05]} 14. c3 {[%emt 0:00:42]} Bd6 {[%emt 0:01:20]} 15. Qe2 {[%emt 0:00:56]} Qc7 {[%emt 0:05:11]} 16. Bd2 {[%emt 0:04:08]} O-O-O {[%emt 0:06:30]} 17. a4 {[%emt 0:05:11]} Nd7 {[%emt 0:06:02]} (17... a6 $14 {feels stronger.}) 18. a5 {[%emt 0:00:36]} (18. Bg2 $16) 18... a6 {[%emt 0:00:12]} 19. Bg2 {[%emt 0:01:58]} e5 {[%emt 0:05:32][%cal Be6e5,Be5e4][%mdl 32]} 20. O-O {[%emt 0:00:12]} Rde8 {[%emt 0:00:37] White leaves nothing to chance now.} (20... Rhe8 $14) 21. d5 $16 {[%emt 0:03:47]} cxd5 {[%emt 0:07:20] [#]} (21... e4 $142) 22. c4 $1 {[%emt 0:00:08][%mdl 512]} e4 {[%emt 0:05:44]} (22... Nf6 23. Rfc1) 23. cxd5 {[%emt 0:01:04]} Kb8 {[%emt 0:01:44]} (23... Kd8 {was called for.} 24. Rfc1 (24. Bxe4 Nc5 $17) 24... Qb8 25. Bg5+ (25. Bxe4 f5 $17) 25... f6) 24. Rac1 $18 {[%emt 0:00:23]} (24. Bxe4 $2 Nf6 (24... Rxh3 25. Rac1 $14) (24... Nc5 $2 25. Rfc1 $19) 25. Rac1 (25. Ra4 $2 Qd7 $19) 25... Rxe4 $19) 24... Qd8 {[%emt 0:00:25] [#]} 25. b4 {[%emt 0:00:11][%cal Ob4b5] Wards off Nc5. And now b5! would win.} (25. Bxe4 $2 f5 (25... Rxh3 26. Qg4 $16) 26. Rfe1 Rxe4 $19) 25... f5 $2 {[%emt 0:04:57]} (25... Rh5 26. b5 (26. Bxe4 $2 {loses.} f5 $19) 26... axb5 27. Qxb5 (27. Bxe4 Nc5 $17) 27... Nf6) 26. b5 {[%emt 0:00:36]} Nc5 {[%emt 0:00:09]} 27. bxa6 {[%emt 0:00:50]} Nxa6 {[%emt 0:00:07]} 28. Rb1 {[%emt 0:04:07]} Ka8 {[%emt 0:00:50] [#]} (28... Nc5 $142 29. Rb6 Re7) 29. Rxb7 $3 {[%emt 0:09:59][%mdl 512]} Kxb7 {[%emt 0:00:09]} (29... Nc5 30. Rb6) 30. Qb5+ {[%emt 0:00:11]} Ka7 {[%emt 0:01:15]} 31. Be3+ {[%emt 0:00:07]} Bc5 {[%emt 0:01:59]} 32. Bxc5+ {[%emt 0:00:05]} Nxc5 {[%emt 0:00:05]} 33. Qxc5+ {[%emt 0:00:03]} Ka8 {[%emt 0:00:28]} 34. Qc6+ {[%emt 0:00:04]} Ka7 {[%emt 0:00:07]} 35. Rb1 {[%emt 0:00:07]} (35. Qxg6 Qf6 36. Qxf6 gxf6 $16) 35... Re7 {[%emt 0:03:04] Wards off Qb7+} 36. d6 {[%emt 1:05:07] White mates.} ({Weaker is} 36. Qxg6 Qxd5 37. Rc1 (37. Qb6+ Ka8 $14) 37... Qe6 $11) 36... Rd7 {[%emt 0:00:15]} 37. Bf1 {[%emt 0:00:00][%csl Gf1][%cal Rc6a6]} Qc8 {[%emt 0:00:26]} 38. Qb6+ {[%emt 0:00:00]} Ka8 {[%emt 0:00:03]} 39. Bb5 {[%emt 0:00:00] Weighted Error Value: White=0.13 (very precise) /Black=0.51.  Mistake:       	White=1     	Black=6      Inaccurate:     	White=2     	---        OK:         	White=8     	Black=6      Best:        	White=1     	---        Brilliant:      	White=2     	---} 1-0

[Event "4NCL Spring GM Round Robin 2024"]
[Site "Peterborough"]
[Date "2024.03.27"]
[Round "8.2"]
[White "Makkar, Rajat"]
[Black "Wadsworth, Matthew J"]
[Result "1-0"]
[ECO "A11"]
[WhiteElo "2434"]
[BlackElo "2450"]
[Annotator "TA"]
[PlyCount "75"]
[EventDate "2024.03.22"]
[EventType "tourn"]
[EventCountry "ENG"]
[SourceTitle "playchess.com"]
[Source "ChessBase"]
[SourceQuality "1"]
[TimeControl "5400+30"]

{[%evp 16,74,20,13,19,24,23,0,60,63,58,34,44,32,39,30,45,39,94,92,103,90,195,194,188,189,193,197,285,278,359,363,524,456,617,593,641,649,878,583,712,606,950,951,933,923,1007,1007,978,944,29994,29995,29995,29996,29996,29997,29997,29998,29998,29999,29999]} 1. c4 {[%emt 0:00:30]} c6 {[%emt 0:00:14]} 2. Nf3 {[%emt 0:01:22]} d5 {[%emt 0:00:33]} 3. g3 {[%emt 0:00:16]} g6 {[%emt 0:01:21]} 4. Bg2 {[%emt 0:01:46]} Bg7 {[%emt 0:00:09]} 5. O-O {[%emt 0:00:05]} Nf6 {[%emt 0:00:29]} 6. b3 {[%emt 0:00:05]} Ne4 {[%emt 0:02:30]} 7. d4 {[%emt 0:00:04]} O-O {[%emt 0:00:08]} 8. Bb2 {[%emt 0:00:24]} a5 {[%emt 0:01:01]} 9. Nc3 {[%emt 0:05:12]} Nxc3 {[%emt 0:06:54]} 10. Bxc3 {[%emt 0:00:03]} b5 {[%emt 0:04:05]} 11. Ne5 {[%emt 0:12:05]} Be6 {[%emt 0:03:58]} (11... dxc4 $11 12. bxc4 b4) 12. cxb5 {[%emt 0:05:22]} cxb5 {[%emt 0:01:59]} 13. Qd2 {[%emt 0:03:39]} Qb6 {[%emt 0:02:04]} 14. Rac1 {[%emt 0:09:37]} b4 {[%emt 0:04:16][%cal Og7e5] [#] White must now prevent ...Bxe5!} 15. Bb2 {[%emt 0:01:02]} a4 {[%emt 0:01:30]} 16. e4 {[%emt 0:13:27]} a3 {[%emt 0:09:58]} (16... Qb7 $14) 17. Ba1 $16 {[%emt 0:00:02] White is more active. White stays focused until the end.} Ra5 {[%emt 0:00:21] [#]} 18. exd5 $1 {[%emt 0:02:07]} Rxd5 {[%emt 0:00:46]} (18... Bxd5 $16 {might work better.} 19. Nc4 Bxc4 20. Rxc4 Rb5) 19. Nc4 $18 {[%emt 0:04:52]} Qb5 {[%emt 0:07:27]} 20. Bxd5 {[%emt 0:00:15]} Bxd5 {[%emt 0:00:44]} 21. Ne3 {[%emt 0:00:27] aiming for Rc5.} Ba8 {[%emt 0:03:51]} (21... Bh6 {was worth a try.} 22. f4 e6 23. Nxd5 exd5) 22. Rc4 {[%emt 0:05:58]} Nc6 {[%emt 0:02:08]} 23. d5 {[%emt 0:01:30][%cal Bd4d5,Bd5c6][%mdl 32]} Bxa1 {[%emt 0:00:52]} (23... Ne5 $142 24. Qxb4 (24. Rxb4 $2 Nf3+ 25. Kg2 Nxd2 $19) (24. Bxe5 Bxe5 25. Qxb4 Qd7 $18) 24... Qd7 25. Bxe5 Bxe5 26. Qxa3 Rd8) 24. dxc6 {[%emt 0:00:13]} Bc3 {[%emt 0:02:33]} 25. Qd7 {[%emt 0:01:18]} e6 {[%emt 0:00:24]} 26. Rd1 {[%emt 0:01:32]} Qh5 {[%emt 0:01:36]} 27. Ng4 {[%emt 0:08:07] c7 would now be deadly.} Kg7 {[%emt 0:01:40]} 28. Qc7 {[%emt 0:05:39]} Qf5 {[%emt 0:03:20]} 29. Rf4 {[%emt 0:02:07]} Qc2 {[%emt 0:07:17]} 30. Rd7 {[%emt 0:00:27][%cal Rd7f7]} Bf6 {[%emt 0:01:40]} 31. Ne5 {[%emt 0:02:45][%cal Rd7f7]} (31. Rxb4 $2 Qc1+ (31... Qxa2 32. Nxf6 Qb1+ 33. Kg2 $18) 32. Kg2 Bxc6+ 33. f3 Qb2+ 34. Kh3 Bxf3 $19 (34... Bxd7 $2 35. Qxd7 Rd8 36. Qb7 $19)) 31... Qc1+ {[%emt 0:07:51]} 32. Kg2 {[%emt 0:00:10][%cal Rd7f7]} Bxe5 {[%emt 0:00:43]} 33. Rdxf7+ {[%emt 0:00:40] White mates.} (33. Qxe5+ Kg8 34. Rc7 (34. Rxb4 $2 Qxc6+ 35. f3 Qxd7 $19) 34... Bxc6+ 35. Kh3 Qb2 $11) 33... Rxf7 {[%emt 0:00:09]} 34. Qxf7+ {[%emt 0:00:24]} ({Weaker is} 34. Rxf7+ Kg8 $11) 34... Kh6 {[%emt 0:00:08]} 35. Qf8+ {[%emt 0:00:19]} (35. Rxb4 $2 {is the wrong capture.} Bxc6+ (35... Qxc6+ 36. f3 $17) 36. Kh3 Qf1+ 37. Kg4 Bd6 38. Qxe6 Bxb4 $19) 35... Kg5 {[%emt 0:01:07]} 36. h4+ {[%emt 0:00:06]} Kh5 {[%emt 0:00:08]} 37. g4+ {[%emt 0:00:04]} Kxh4 {[%emt 0:00:04]} 38. Qh6# {[%emt 0:00:08] Weighted Error Value: White=0.26 (precise) /Black=0.79.  Mistake:       	---       	Black=5      Inaccurate:     	---       	Black=3      OK:         	White=7     	Black=4      Best:        	White=2     	---        Strong:       	White=1     	---} 1-0

[Event "4NCL Spring GM Round Robin 2024"]
[Site "Peterborough"]
[Date "2024.03.27"]
[Round "8.3"]
[White "Kalavannan, Koby"]
[Black "Agdelen, Huseyin Can"]
[Result "0-1"]
[ECO "E04"]
[WhiteElo "2324"]
[BlackElo "2408"]
[Annotator "TA"]
[PlyCount "66"]
[EventDate "2024.03.22"]
[EventType "tourn"]
[EventCountry "ENG"]
[SourceTitle "playchess.com"]
[Source "ChessBase"]
[SourceQuality "1"]
[TimeControl "5400+30"]

{[%evp 11,65,21,40,-6,0,-34,-29,-69,-49,-59,-52,-245,-223,-237,-212,-260,-155,-200,-218,-245,-195,-214,-205,-193,-199,-194,-203,-185,-166,-486,-498,-481,-500,-482,-481,-503,-497,-1336,-1314,-1167,-747,-1393,-1393,-1340,-1231,-3123,-2909,-29971,-29968,-6411,-6419,-2444,-3368,-29998,-29999,-29999]} 1. d4 {[%emt 0:01:58]} Nf6 {[%emt 0:04:54]} 2. Nf3 {[%emt 0:00:17]} d5 {[%emt 0:01:55]} 3. c4 {[%emt 0:00:12]} e6 {[%emt 0:00:10]} 4. g3 {[%emt 0:00:20]} dxc4 {[%emt 0:04:19]} 5. Bg2 {[%emt 0:00:01]} a6 {[%emt 0:01:51]} 6. O-O {[%emt 0:00:55]} Nc6 {[%emt 0:00:22]} 7. Re1 {[%emt 0:00:43]} (7. e3 $14) 7... Rb8 {[%emt 0:04:40]} 8. e4 {[%emt 0:04:18]} b5 {[%emt 0:02:06]} 9. Bg5 {[%emt 0:01:05] Black has an edge.} Be7 {[%emt 0:06:24]} 10. Nc3 {[%emt 0:02:05]} h6 {[%emt 0:05:05]} 11. e5 $2 {[%emt 0:10:49]} (11. Bf4 $15) 11... hxg5 $19 {[%emt 0:02:58]} 12. exf6 {[%emt 0:00:03]} Bxf6 {[%emt 0:00:13][%cal Rc6d4]} 13. Nd5 {[%emt 0:00:33]} Ne7 {[%emt 0:06:24]} ({But not} 13... Qxd5 14. Ne5 Qd6 15. Bxc6+ Ke7 16. Bg2 $17) (13... Kf8 $19 14. Nxf6 gxf6) 14. Nxf6+ {[%emt 0:01:59]} gxf6 {[%emt 0:03:32]} 15. h4 {[%emt 0:03:25]} Bb7 {[%emt 0:09:37]} 16. hxg5 {[%emt 0:14:30]} fxg5 {[%emt 0:00:19]} 17. Nxg5 {[%emt 0:04:12]} Bxg2 {[%emt 0:00:15]} 18. Kxg2 {[%emt 0:52:05]} Qd5+ {[%emt 0:00:07]} 19. Nf3 {[%emt 0:00:00]} Ng6 $40 {[%emt 0:00:50][%mdl 128] Prevents Re5. Threatens to win with ...Qf5. Black has strong attack.} 20. Re3 $2 {[%emt 0:00:00]} (20. Qe2 {nothing else works.}) 20... Qf5 {[%emt 0:09:35]} 21. Ng1 {[%emt 0:00:00] [#] Wards off Qh3+} Rh2+ $3 {[%emt 0:00:38][%mdl 512]} 22. Kxh2 {[%emt 0:00:00]} Qxf2+ {[%emt 0:00:06]} 23. Kh3 {[%emt 0:00:00]} Qxe3 {[%emt 0:00:12]} 24. Nf3 {[%emt 0:00:00]} (24. Qf3 $142 Qxd4 25. Qc6+ Qd7 26. Qxd7+ Kxd7 27. Nf3) 24... Ke7 {[%emt 0:00:37][%cal Og6f4]} 25. Qf1 {[%emt 0:00:00]} Rg8 {[%emt 0:01:18][%cal Og6f4] And now ...Nf4+! would win.} 26. Rd1 {[%emt 0:00:00] [#]} Nf4+ $1 {[%emt 0:04:15][%mdl 512]} 27. Kh2 {[%emt 0:00:00]} Ne2 {[%emt 0:00:29]} 28. Re1 {[%emt 0:00:00]} Nxg3 {[%emt 0:01:35]} 29. Qg2 {[%emt 0:00:00]} Qf4 {[%emt 0:02:53]} 30. Kg1 {[%emt 0:00:00]} Rg4 {[%emt 0:00:48] ( -> ...Nf5)} 31. Ne5 {[%emt 0:00:00]} Qxd4+ {[%emt 0:00:20]} 32. Kh2 {[%emt 0:00:00]} Rh4+ {[%emt 0:00:04]} 33. Kxg3 {[%emt 0:00:00]} Qf4# {[%emt 0:00:06] White got outplayed after the opening.   Weighted Error Value: White=1.36/Black=0.38.  Loses game:     	White=1     	---        Mistake:       	White=2     	Black=1      Inaccurate:     	White=2     	---        OK:         	White=2     	Black=6      Best:        	White=4     	Black=2      Brilliant:      	---       	Black=1} 0-1